Cogmind - Beta 13 @@@ ROGUE MODE // 2024.05.22 @ 14:26:26 Player: Lunace Result: Destroyed by as-20168 with Assembled Maul Performance ------------- Evolutions (0) 0 Regions Visited (2) 400 Robots Destroyed (12) 60 Value Destroyed (243) 243 Prototype IDs (0) 0 Alien Tech Used (0) 0 Bonus (0) 0 TOTAL SCORE: 703 Bonus ------- None Cogmind --------- Core Integrity 0/250 Matter 290/300 Energy 77/100 System Corruption 7% Temperature Cool (42) Movement Core (400) Ox7 Location -10/Mines Parts ------- > --- POWER (1) -------- (None) > --- PROPULSION (2) --- (None) > --- UTILITY (2) ------ Heat Sink Large Storage Unit > --- WEAPON (2) ------- Medium Laser > --- INVENTORY (15) --- Small Storage Unit High-capacity Storage Unit Light Armor Plating Medium Laser Peak State ------------ > --- POWER ------------ Ion Engine > --- PROPULSION ------- Light Treads Light Treads > --- UTILITY ---------- Small Storage Unit Seismic Detector > --- WEAPON ----------- Medium Laser Medium Laser > --- INVENTORY -------- Ion Engine EM Pulse Gun [Rating: 7] Favorites ----------- Power Ion Engine Engine Ion Engine Propulsion Light Treads Treads Light Treads Utility Large Storage Unit Device Heat Sink Storage Large Storage Unit Weapon EM Pulse Gun Energy Gun EM Pulse Gun Build | -11 -10 -10 ------- Run | Yrd Mat Min Slots Evolved . | . . . Power . | . . . Propulsion . | . . . Utility . | . . . Weapon . | . . . Parts Attached 17 | 7 7 3 Power 2 | 1 . 1 Engine 2 | 1 . 1 Core . | . . . Reactor . | . . . Propulsion 3 | 2 1 . Treads 3 | 2 1 . Leg . | . . . Wheel . | . . . Hover . | . . . Flight . | . . . Utility 4 | 2 2 . Device 2 | 1 1 . Storage 2 | 1 1 . Processor . | . . . Hackware . | . . . Protection . | . . . Artifact . | . . . Weapon 8 | 2 4 2 Energy Gun 8 | 2 4 2 Energy Cannon . | . . . Ballistic Gun . | . . . Ballistic Cannon . | . . . Launcher . | . . . Special Weapon . | . . . Impact Weapon . | . . . Slashing Weapon . | . . . Piercing Weapon . | . . . Special Melee Weapon . | . . . Unidentified Prototypes . | . . . Parts Lost 7 | . 1 6 Power 1 | . . 1 Propulsion 2 | . . 2 Utility . | . . . Weapon 4 | . 1 3 Highest Loss Streak 6 | . 1 6 To Critical Strikes . | . . . Average Slot Usage (%) 99 | . 99 98 Engine 13 | . 14 12 Treads 27 | . 27 28 Device 14 | . 14 14 Storage 14 | . 14 14 Energy Gun 27 | . 27 28 Naked Turns . | . . . Heaviest Build 30 | 15 30 30 Greatest Support 40 | 40 40 40 Greatest Overweight (x) . | . . . Average Overweight (x) . | . . . Largest Inventory Capacity 15 | 8 15 15 Average Capacity 12 | 7 13 15 Most Carried 8 | 2 8 7 Average Carried 5 | 1 6 6 Final Capacity 15 | 8 15 15 Final Carried 7 | 2 7 4 Class Distribution -------------------- 100% | Mutant Dominant Class ---------------- Mutant | -10/Materials Mutant | -10/Mines Resources | -11 -10 -10 ----------- Run | Yrd Mat Min Matter Collected 330 | 270 60 . Remotely . | . . . Salvage Created 477 | 110 292 75 Parts 23 | 3 20 . Haulers Intercepted 1 | . 1 . Recyclers Shooed . | . . . Parts Field Recycled . | . . . Retrieved Matter . | . . . Parts Self-Destructed . | . . . Prevented . | . . . Kills | -11 -10 -10 ------- Run | Yrd Mat Min Combat Hostiles Destroyed 11 | . 7 4 Guns 8 | . 4 4 AOE 2 | . 2 . Classes Destroyed 8 | 2 5 1 Tunneler 1 | 1 . . Hauler 1 | . 1 . Recycler 1 | 1 . . Operator 1 | . 1 . Watcher 1 | . 1 . Swarmer 3 | . 3 . Grunt 4 | . 4 . Assembled 4 | . . 4 Best Kill Streak 4 | 2 2 4 Combat Bots Only 4 | . 2 4 Max Kills in Single Turn 2 | 1 2 1 Gunslinging . | . . . Exploded 2 | . 2 . Melee . | . . . Uniques/NPCs Destroyed . | . . . Combat | -11 -10 -10 -------- Run | Yrd Mat Min Hostile Shots Fired 92 | . 38 54 Missed 21 | . 11 10 Damage Taken 977 | . 254 723 Core 252 | . 36 216 Absorbed by Shields . | . . . Regen/Repaired (Parts) 24 | . 24 . Core Remaining (%) 100 | 100 . . Volleys Fired 50 | 3 36 11 Largest 2 | 2 2 2 Hottest 100 | 100 100 80 Shots Fired 98 | 6 72 20 Gun 98 | 6 72 20 Cannon . | . . . Launcher . | . . . Special . | . . . Kinetic . | . . . Thermal 23 | 6 16 1 Explosive . | . . . Electromagnetic 75 | . 56 19 Robot Hit Streak 8 | 5 7 8 Robot Miss Streak 5 | . 5 5 Penetration Max . | . . . Secondary Targets 3 | . 1 2 Max Gunslinging Chain 1 | . 1 1 Shots Hit Robots 51 | 5 37 9 Core Hits 23 | 3 11 9 Critical Kills . | . . . Critical Parts Destroyed . | . . . Critical Strikes 4 | 2 2 . Burn 3 | 2 1 . Corrupt 1 | . 1 . Melee Attacks . | . . . Impact . | . . . Slashing . | . . . Piercing . | . . . Sneak Attacks . | . . . Combat Hostiles . | . . . Follow-up Attacks . | . . . Damage Inflicted 935 | 63 736 136 Guns 697 | 63 498 136 Cannons . | . . . Explosions 238 | . 238 . Melee . | . . . Ramming . | . . . Kinetic . | . . . Thermal 255 | 63 179 13 Explosive 197 | . 197 . Electromagnetic 483 | . 360 123 Impact . | . . . Slashing . | . . . Piercing . | . . . Highest Corruption 7 | . . 7 Average Corruption 4 | . . 4 Corruption Purged . | . . . Corruption Blocked . | . . . Overload Shots . | . . . Overflow Damage . | . . . Projectiles . | . . . Explosions . | . . . Melee . | . . . Knockbacks . | . . . Impact . | . . . Kinetic . | . . . Secondary . | . . . Self-Inflicted Damage . | . . . Shots . | . . . Rammed . | . . . Targets Rammed . | . . . Kicked . | . . . Crushed . | . . . Highest Temperature 213 | 78 213 62 Average Temperature 54 | 33 63 35 Received Heat Transfer 266 | . 66 200 Siege Activations . | . . . Robots Corrupted 1 | . 1 . Combat Hostiles 1 | . 1 . Parts Fried 2 | . 2 . Impact Corruptions . | . . . Robots Melted . | . . . Combat Hostiles . | . . . Parts Melted 2 | 1 1 . Heat Transferred 901 | 333 531 37 Parts Sabotaged . | . . . Parts Stolen . | . . . Parts Stripped . | . . . Power Chain Reactions 1 | . 1 . Alert | -11 -10 -10 ------- Run | Yrd Mat Min Peak Influence 243 | 10 243 . Initial 6 | . 6 . Average 63 | 2 79 . Maximum Alert Level 1 | . 1 . Low Security (%) 96 | 100 95 100 Level 1 3 | . 4 . Level 2 . | . . . Level 3 . | . . . Level 4 . | . . . Level 5 . | . . . High Security . | . . . Max Security . | . . . Squads Dispatched 2 | . 2 . Investigation 1 | . 1 . Extermination . | . . . Reinforcement 1 | . 1 . Assault . | . . . Garrison . | . . . Intercept . | . . . Searches Triggered . | . . . Construction Impeded . | . . . Haulers Reinforced . | . . . Active Scanning Responses . | . . . Cargo Convoy Interrupts . | . . . Stealth | -11 -10 -10 --------- Run | Yrd Mat Min Distress Signals . | . . . Communications Jammed . | . . . Distress Signals . | . . . Times Spotted 32 | . 13 19 Peak Tracking Total 17 | . 3 17 Tactical Retreats 2 | . 1 1 Traps | -11 -10 -10 ------- Run | Yrd Mat Min Traps Triggered 1 | . 1 . Indirectly . | . . . Trap Hack Attempts . | . . . Triggered . | . . . Disarmed . | . . . Reprogrammed . | . . . Reused . | . . . Traps Extracted . | . . . Installed . | . . . Triggered . | . . . Machines | -11 -10 -10 ---------- Run | Yrd Mat Min Machines Disabled 3 | . 3 . Max in Single Turn 1 | . 1 . Machines Repaired . | . . . Machines Dismantled . | . . . Machines Sabotaged . | . . . Overloaded Fab Kills . | . . . Hacking | -11 -10 -10 --------- Run | Yrd Mat Min Machines Accessed 7 | . 7 . Terminals 5 | . 5 . Fabricators . | . . . Repair Stations 1 | . 1 . Recycling Units 1 | . 1 . Scanalyzers . | . . . Garrison Access . | . . . Total Hacks 17 | . 17 . Successful 10 | . 10 . Failed 7 | . 7 . Catastrophic 3 | . 3 . Database Lockouts . | . . . Manual 13 | . 13 . Terminals 12 | . 12 . Fabricators . | . . . Repair Stations 2 | . 2 . Recycling Units 3 | . 3 . Scanalyzers . | . . . Garrison Access . | . . . Terminal Hacks 1 | . 1 . Unreport Threat 1 | . 1 . Fabricator Hacks . | . . . Repair Station Hacks 2 | . 2 . Scan Component 1 | . 1 . Repair 1 | . 1 . Recycling Unit Hacks 1 | . 1 . Report Inventory 1 | . 1 . Scanalyzer . | . . . Garrison Access Hacks . | . . . Unauthorized Hacks 6 | . 6 . Terminals 4 | . 4 . Botnet 3 | . 3 . Operators 1 | . 1 . Fabricators . | . . . Repair Stations . | . . . Recycling Units 2 | . 2 . Monitor 1 | . 1 . Recyclers 1 | . 1 . Scanalyzers . | . . . Garrison Access . | . . . Data Cores Recovered . | . . . Used . | . . . Hacking Detections 5 | . 5 . Full Trace Events . | . . . Feedback Events . | . . . Feedback Blocked . | . . . Robot Schematics Acquired . | . . . Robots Built . | . . . Authchips . | . . . Time . | . . . Total Robot Build Rating . | . . . Part Schematics Acquired . | . . . Parts Built . | . . . Authchips . | . . . Time . | . . . Total Part Build Rating . | . . . Parts Repaired 1 | . 1 . Time 26 | . 26 . Parts Recycled . | . . . Recycled Matter . | . . . Retrieved Matter . | . . . Retrieved Components . | . . . Parts Scanalyzed . | . . . Part Schematics Acquired . | . . . Parts Damaged . | . . . Bothacking | -11 -10 -10 ------------ Run | Yrd Mat Min Used RIF Installer . | . . . Robots Hacked . | . . . Non-combat . | . . . Combat . | . . . Robot Hacks Applied . | . . . Relay Couplers Released . | . . . Fabnet Peak Effective % . | . . . Robots Rewired . | . . . Allies Hacked . | . . . Hacks Repelled . | . . . Allies | -11 -10 -10 -------- Run | Yrd Mat Min Total Allies . | . . . Largest Group . | . . . Highest-Rated Group . | . . . Highest-Rated Ally . | . . . Total Orders . | . . . Ally Attacks . | . . . Total Damage . | . . . Kills . | . . . Allies Corrupted . | . . . Allies Melted . | . . . Intel | -11 -10 -10 ------- Run | Yrd Mat Min Robot Analysis Total . | . . . Derelict Logs Recovered 1 | . . 1 Drone Launches . | . . . Drone Recoveries . | . . . Exploration | -11 -10 -10 ------------- Run | Yrd Mat Min Turns Passed 1036 | 118 823 95 Spaces Moved 511 | 60 413 38 Core 5 | 5 . . Treads 506 | 55 413 38 Legs . | . . . Wheels . | . . . Hover . | . . . Flight . | . . . Fastest Speed 50 | 50 160 160 Average Speed 158 | 150 160 160 Slowest Speed 160 | 160 160 160 Overloaded Moves . | . . . Propulsion Burnouts . | . . . Robots Hopped . | . . . Cave-ins Triggered . | . . . Exploration Rate (%) 29 | 4 74 11 Regions Visited 2 Branch Regions 1 Pre-discovered Areas 1 | . . 1 Known Exits Taken . | . . . Unknown Exits Taken 2 | 1 1 . Scrap Searched . | . . . Spaces Dug . | . . . Terrain Destroyed 30 | . 30 . Melee . | . . . Projectile . | . . . AOE 30 | . 30 . Terrain Rammed . | . . . Walls Destroyed . | . . . Machines Disabled . | . . . Actions | -11 -10 -10 --------- Run | Yrd Mat Min Total 633 | 78 503 52 Wait 47 | 7 40 . Move 509 | 59 412 38 Hop . | . . . Pick Up 5 | 2 3 . Fast Attach 11 | 7 4 . Attach 5 | . 2 3 Detach 4 | . 4 . Swap 1 | . 1 . Drop 1 | . 1 . Fire 50 | 3 36 11 Melee . | . . . Ram . | . . . Kick . | . . . Crush . | . . . Escape Stasis . | . . . Rewire . | . . . Trap . | . . . Miscellaneous . | . . . Route ------- -11/Scrapyard -10/Materials (discovered 3 exits: [*Mat x2] / [*Min]) -10/Mines History --------- Turn | Location | Event 12 | -11/Scrapyard | Discovered new exit (range 15) 119 | -11/Scrapyard | Entered Materials 323 | -10/Materials | Build established: Mutant 428 | -10/Materials | Repaired Lgt. Treads 439 | -10/Materials | Discovered new exit (range 12) 556 | -10/Materials | Discovered new exit (range 15) 895 | -10/Materials | Discovered new exit (range 11) 942 | -10/Materials | Entered Mines 953 | -10/Mines | Learned location of Storage (-8) 988 | -10/Mines | Assembled infested the area 993 | -10/Mines | Assisted by a Guerilla fighting off Assembled 1000 | -10/Mines | Learned Materials terminal intel 1031 | -10/Mines | Core integrity fell below 50% 1037 | -10/Mines | Destroyed by as-20168 with Assembled Maul Last Messages --------------- 01018_ as-31076 destroyed. 01019_ HV Slug penetrates Wall. 01019_ 9F-UR2(h) system corrupted by crushing effect. 01020_ 9F-UR2(h) system terminally corrupted. 01024_ as-90763 destroyed. 01024_ Switching to secondary target: as-47830. 01027_ as-47830 destroyed. 01027_ Switching to secondary target: as-79140. 01028_ Ion Engine destroyed. 01031_ EM Pulse Gun destroyed. 01031_ System corrupted by crushing effect (+1). 01031_ as-02225 destroyed. 01032_ Lgt. Treads destroyed. 01034_ System corrupted by crushing effect (+2). 01034_ Knocked back. 01034_ EM Pulse Gun destroyed. 01034_ System corrupted by crushing effect (+3). 01034_ System corrupted by crushing effect (+1). 01037_ Ion Engine severed. Map ----- +----------------------------------------------------+ | | | | | ??????????????????????????????????????? | | ??????????????????????????????????????? | | ????????????????????????#######???????? | | ???????????????????????## ##??????? | | ????????????????????#### #??????? | | ????????????????????# #??????? | | ????????????????????# ###### ##??????? | | ????????????????????# ##????###???????? | | ???????????????????## ######?????????? | | ???????????????????# ##????????? | | ???????????????????# #????????? | | ???????????????????## ## #????????? | | ????????????????????# ### ##????????? | | ????????????????????# #?####?????????? | | ????????????????????# ####???????????? | | ????????????????????# #???????????? | | ????????????????????# #???????????? | | ????????????????????#### #???????????? | | ???????????????????????# #???????????? | | ???????????????????????# #???????????? | | ???????????????????????# #???????????? | | ???????????????????????# #???????????? | | ????????????????# ###### #???????????? | | ????????????????# a@#???????????? | | ????????????????# aa#???????????? | | ????????????????##### aa#???????????? | | ???????????????????# aa #???????????? | | ??????????????????# %a #???????????? | | ??????????????????# a%##???????????? | | ??????????????????## ;?????????????? | | ???????????????????# % ;?????????????? | | ???????????????????#% #?????????????? | | ???????????????????# ??????????????? | | ???????????????????# ;#??????????????? | | ???????????????????# ;???????????????? | | ???????????????????# #???????????????? | | ???????????????????; %????????????????? | | ???????????????????" $????????????????? | | ??????????????????????????????????????? | | ??????????????????????????????????????? | | ??????????????????????????????????????? | | ??????????????????????????????????????? | | ??????????????????????????????????????? | | ??????????????????????????????????????? | | ??????????????????????????????????????? | | ??????????????????????????????????????? | | ??????????????????????????????????????? | | ??????????????????????????????????????? | +----------------------------------------------------+ Best States ------------- Heat Dissipation 35 Energy Generation 10 Energy Capacity 250 Matter Stores 300 Matter Capacity 300 Sight Range 16 Terrain Scan Density 10 Evasion (%) 40 Recoil Reduction 2 Item Schematics ----------------- None Robot Schematics ------------------ None Fabricated ------------ Nothing Alien Tech Used ----------------- None Achievements -------------- None Challenges ------------ None Game ------ Seed MatterDerelictJammer Manual? 0 Play Time 00:08:29 Cumulative 209.5 hours Start 2024.05.22 @ 14:17:21 End 2024.05.22 @ 14:26:26 Sessions 1 Manual Loads 0 Difficulty Rogue Special Mode None Game No. 202 Rogue 197 Adventurer 5 Explorer 0 Win Type - Total 3 Types 2/0/0/1/0/0/0/0/0 Lore% 58 Gallery% 78 Achievement% 56 Wizard Run 0 Options --------- Layout 2 ASCII 0 Keyboard 0 Movement Arrows Keybinds 0 Fullscreen 1 Font 24/Terminus Map View 50x44 Zoom Use 0% Tactical HUD 1 Map Filters NONE Filters NONE Steam 1 RUN: 793b9404-0621-4b59-814f-517f80768c54